fUST/lending_fUST_20250713
["ID","MTS","AMOUNT","RATE_DAILY","PERIOD"]
[371532210,1752339066730,-1297.92,0.00021095,2]
[371532212,1752339066741,-1030.17,0.00021095,2]
[371532214,1752339066750,-460.0,0.00021095,2]
[371532216,1752339066759,-1957.07,0.00021095,2]
[371532218,1752339066769,-1236.38,0.00021095,2]
[371532220,1752339066780,-463.53,0.00021095,2]
[371532222,1752339066789,-569.09,0.00021095,2]
[371532224,1752339066799,-460.0,0.00021095,2]
[371532226,1752339066808,-539.54,0.00021095,2]
[371532228,1752339066817,-461.54,0.00021095,2]
[371532230,1752339066827,-251.38,0.00021095,2]
[371532232,1752339066836,-243.80177621,0.00021095,2]
[371532234,1752339066846,-594.72,0.00021095,2]
[371532236,1752339066855,-1010.33,0.00021095,2]
[371532238,1752339066864,-218.11,0.00021095,2]
[371532240,1752339066874,-242.99406408,0.00021095,2]
[371532242,1752339066883,-2088.38,0.00021095,2]
[371532244,1752339066893,-2151.05,0.00021095,2]
[371532246,1752339066902,-460.0,0.00021095,2]
[371532248,1752339066911,-3488.55,0.00021095,2]
[371532250,1752339066920,-2850.9,0.00021095,2]
[371532252,1752339066929,-658.41,0.00021095,2]
[371532254,1752339066938,-538.24,0.00021095,2]
[371532256,1752339066947,-460.0,0.00021095,2]
[371532258,1752339066957,-460.0,0.00021095,2]
[371532260,1752339066966,-849.11,0.00021095,2]
[371532262,1752339066975,-504.357053,0.00021095,2]
[371532264,1752339066984,-417.986802,0.00021095,2]
[371532266,1752339066994,-460.0,0.00021095,2]
[371532268,1752339067003,-417.986802,0.00021095,2]
[371532270,1752339067012,-504.357053,0.00021095,2]
[371532272,1752339067021,-1149.94,0.00021095,2]
[371532274,1752339067030,-460.0,0.00021095,2]
[371532276,1752339067040,-2118.74119034,0.00021165,2]
[371532278,1752339067050,-502.54304723,0.000212,2]
[371532279,1752339067060,-500.0,0.000212,2]
[371532281,1752339067070,-500.0,0.000212,2]
[371532282,1752339067079,-215.0738,0.00021268,2]
[371532284,1752339067089,-2034.99919285,0.00021279,5]
[371532285,1752339067098,-27885.29,0.000213,2]
[371532286,1752339067107,-468.36,0.00021369,2]
[371532288,1752339067117,-460.0,0.00021369,2]
[371532289,1752339067126,-460.0,0.00021369,2]
[371532291,1752339067135,-550.87,0.00021369,2]
[371532293,1752339067145,-646.89,0.00021369,2]
[371532294,1752339067155,-573.66,0.00021369,2]
[371532296,1752339067165,-635.22,0.00021369,2]
[371532297,1752339067174,-460.0,0.00021369,2]
[371532299,1752339067184,-623.67,0.00021369,2]
[371532300,1752339067193,-5412.1,0.00021369,2]
[371532302,1752339067203,-683.41,0.00021369,2]
[371532303,1752339067214,-1187.86,0.00021369,2]
[371532305,1752339067225,-1123.48,0.00021369,2]
[371532306,1752339067234,-2621.56,0.00021369,2]
[371532308,1752339067243,-682.03,0.00021369,2]
[371532309,1752339067253,-1297.92,0.00021369,2]
[371532311,1752339067262,-1030.17,0.00021369,2]
[371532312,1752339067272,-460.0,0.00021369,2]
[371532314,1752339067282,-1957.07,0.00021369,2]
[371532315,1752339067291,-1236.38,0.00021369,2]
[371532317,1752339067301,-463.53,0.00021369,2]
[371532319,1752339067311,-569.09,0.00021369,2]
[371532320,1752339067321,-402.93,0.00021369,2]
[371532322,1752339067330,-539.54,0.00021369,2]
[371532324,1752339067339,-461.54,0.00021369,2]
[371532325,1752339067348,-594.72,0.00021369,2]
[371532327,1752339067357,-1010.33,0.00021369,2]
[371532328,1752339067367,-2088.38,0.00021369,2]
[371532330,1752339067377,-2151.05,0.00021369,2]
[371532332,1752339067386,-460.0,0.00021369,2]
[371532333,1752339067395,-3488.55,0.00021369,2]
[371532335,1752339067405,-2850.9,0.00021369,2]
[371532337,1752339067415,-538.24,0.00021369,2]
[371532338,1752339067425,-658.41,0.00021369,2]
[371532340,1752339067435,-460.0,0.00021369,2]
[371532341,1752339067444,-460.0,0.00021369,2]
[371532343,1752339067454,-849.11,0.00021369,2]
[371532345,1752339067464,-310.23640402,0.00021369,2]
[371532346,1752339067473,-1149.94,0.00021369,2]
[371532348,1752339067483,-460.0,0.00021369,2]
[371532350,1752339067492,-1500.0,0.0002142,2]
[371532351,1752339067501,-1500.0,0.0002145,2]
[371532353,1752339067510,-1500.0,0.0002145,2]
[371532354,1752339067519,-153.0,0.00021479,2]
[371532356,1752339067529,-153.0,0.00021479,2]
[371532358,1752339067538,-2034.99919285,0.00021521,5]
[371532359,1752339067547,-468.36,0.00021643,2]
[371532361,1752339067557,-460.0,0.00021643,2]
[371532363,1752339067566,-460.0,0.00021643,2]
[371532364,1752339067577,-550.87,0.00021643,2]
[371532366,1752339067586,-646.89,0.00021643,2]
[371532367,1752339067596,-573.66,0.00021643,2]
[371532369,1752339067605,-635.22,0.00021643,2]
[371532370,1752339067615,-460.0,0.00021643,2]
[371532372,1752339067624,-623.67,0.00021643,2]
[371532374,1752339067633,-4428.9987808,0.00021643,2]
[371532422,1752339068375,-460.0,0.00016438,2]
[371532424,1752339068385,-460.0,0.00016712,2]
[371532425,1752339068396,-460.0,0.00016986,2]
[371532427,1752339068406,-460.0,0.00016986,2]
[371532429,1752339068415,-500.0,0.00017205,2]
[371532430,1752339068425,-500.0,0.00017232,2]
[371532432,1752339068435,-500.0,0.0001726,2]
[371532434,1752339068444,-460.0,0.0001726,2]
[371532435,1752339068454,-500.0,0.00017287,2]
[371532437,1752339068464,-460.0,0.00017534,2]
[371532439,1752339068473,-460.0,0.00017808,2]
[371532440,1752339068483,-500.0,0.0001808,2]
[371532442,1752339068492,-500.0,0.0001808,2]
[371532443,1752339068502,-500.0,0.0001808,2]
[371532445,1752339068511,-500.0,0.0001808,2]
[371532447,1752339068520,-500.0,0.0001808,2]
[371532448,1752339068531,-156.63703059,0.0001808,2]
[371532450,1752339068540,-500.0,0.0001808,2]
[371532451,1752339068550,-500.0,0.0001808,2]
[371532453,1752339068559,-500.0,0.0001808,2]
[371532455,1752339068574,-500.0,0.0001808,2]
[371532457,1752339068592,-500.0,0.0001808,2]
[371532459,1752339068606,-500.0,0.0001808,2]
[371532461,1752339068621,-500.0,0.0001808,2]
[371532463,1752339068639,-500.0,0.0001808,2]
[371532465,1752339068655,-500.0,0.0001808,2]
[371532468,1752339068674,-500.0,0.0001808,2]
[371532470,1752339068689,-500.0,0.0001808,2]
[371532472,1752339068703,-500.0,0.0001808,2]
[371532474,1752339068720,-500.0,0.0001808,2]
[371532476,1752339068736,-1770.87,0.00018082,2]
[371532477,1752339068748,-460.0,0.00018082,2]
[371532479,1752339068761,-764.22,0.00018356,2]
[371532481,1752339068777,-1770.87,0.00018356,2]
[371532483,1752339068792,-460.0,0.00018356,2]
[371532484,1752339068808,-764.22,0.0001863,2]
[371532485,1752339068825,-1770.87,0.0001863,2]
[371532486,1752339068835,-460.0,0.0001863,2]
[371532487,1752339068847,-764.22,0.00018904,2]
[371532488,1752339068865,-1770.87,0.00018904,2]
[371532489,1752339068878,-764.22,0.00019178,2]
[371532490,1752339068892,-1770.87,0.00019178,2]
[371532491,1752339068906,-460.0,0.00019452,2]
[371532492,1752339068917,-764.22,0.00019452,2]
[371532493,1752339068929,-1770.87,0.00019452,2]
[371532494,1752339068942,-460.0,0.00019726,2]
[371532495,1752339068956,-764.22,0.00019726,2]
[371532496,1752339068969,-827.723184,0.00019726,2]
[371532497,1752339068991,-943.146816,0.00019726,2]
[371532499,1752339069004,-460.0,0.0002,2]
[371532500,1752339069018,-764.22,0.0002,2]
[371532503,1752339069032,-1770.87,0.0002,2]
[371532505,1752339069044,-464.47,0.00020273,2]
[371532507,1752339069057,-983.1012192,0.00021643,2]
[371532510,1752339069071,-683.41,0.00021643,2]
[371532512,1752339069084,-1187.86,0.00021643,2]
[371532515,1752339069098,-1849.5558128,0.00021643,2]
[371532518,1752339069114,-772.0041872,0.00021643,2]
[371532520,1752339069127,-1123.48,0.00021643,2]
[371532522,1752339069140,-682.03,0.00021643,2]
[371532525,1752339069153,-1297.92,0.00021643,2]
[371532527,1752339069163,-1030.17,0.00021643,2]
[371532529,1752339069172,-460.0,0.00021643,2]
[371532531,1752339069182,-1957.07,0.00021643,2]
[371532533,1752339069192,-1236.38,0.00021643,2]
[371532535,1752339069201,-463.53,0.00021643,2]
[371532537,1752339069211,-569.09,0.00021643,2]
[371532539,1752339069220,-539.54,0.00021643,2]
[371532541,1752339069229,-461.54,0.00021643,2]
[371532543,1752339069239,-594.72,0.00021643,2]
[371532545,1752339069248,-1010.33,0.00021643,2]
[371532547,1752339069258,-2088.38,0.00021643,2]
[371532549,1752339069268,-2151.05,0.00021643,2]
[371532551,1752339069278,-460.0,0.00021643,2]
[371532553,1752339069287,-3488.55,0.00021643,2]
[371532555,1752339069297,-2850.9,0.00021643,2]
[371532557,1752339069307,-538.24,0.00021643,2]
[371532559,1752339069318,-658.41,0.00021643,2]
[371532561,1752339069327,-460.0,0.00021643,2]
[371532563,1752339069338,-282.40466188,0.00021643,2]
[371532565,1752339069347,-849.11,0.00021643,2]
[371532567,1752339069357,-795.1511525,0.00021643,2]
[371532570,1752339069369,-354.7888475,0.00021643,2]
[371532572,1752339069378,-460.0,0.00021643,2]
[371532574,1752339069388,-2118.74119034,0.00021661,2]
[371532576,1752339069397,-168.0,0.00021679,2]
[371532578,1752339069407,-484.61580269,0.00021698,2]
[371532580,1752339069420,-162.38419731,0.00021698,2]
[371532582,1752339069429,-296.53992502,0.00021698,2]
[371532584,1752339069440,-488.35615697,0.00021698,2]
[371532655,1752339070104,-460.0,0.00016438,2]
[371532657,1752339070113,-55.70928475,0.0001726,2]
[371532659,1752339070125,-404.29071525,0.0001726,2]
[371532661,1752339070135,-500.0,0.00017315,2]
[371532663,1752339070145,-365.63311928,0.00017342,2]
[371532666,1752339070162,-134.36688072,0.00017342,2]
[371532668,1752339070172,-325.99171824,0.00017369,2]
[371532670,1752339070181,-460.0,0.00017534,2]
[371532672,1752339070190,-500.0,0.0001808,2]
[371532674,1752339070200,-500.0,0.0001808,2]
[371532676,1752339070209,-170.13677955,0.0001808,2]
[371532678,1752339070218,-500.0,0.0001808,2]
[371532680,1752339070228,-500.0,0.0001808,2]
[371532682,1752339070237,-500.0,0.0001808,2]
[371532684,1752339070246,-500.0,0.0001808,2]
[371532686,1752339070256,-322.99462698,0.0001808,2]
[371532688,1752339070267,-177.00537302,0.0001808,2]
[371532690,1752339070277,-228.80308687,0.0001808,2]
[371532692,1752339070286,-370.14122431,0.0001808,2]
[371532694,1752339070298,-129.85877569,0.0001808,2]
[371532696,1752339070307,-500.0,0.0001808,2]
[371532698,1752339070317,-460.0,0.00018904,2]
[371532700,1752339070326,-460.0,0.00019178,2]
[371532702,1752339070336,-460.0,0.00019452,2]
[371532704,1752339070344,-460.0,0.00019726,2]
[371532706,1752339070354,-460.0,0.0002,2]
[371532708,1752339070363,-764.22,0.00020273,2]
[371532710,1752339070372,-1770.87,0.00020273,2]
[371532712,1752339070381,-460.0,0.00020273,2]
[371532714,1752339070390,-764.22,0.00020547,2]
[371532716,1752339070399,-1770.87,0.00020547,2]
[371532718,1752339070409,-459.904498,0.00020547,2]
[371532720,1752339070418,-1055.37049137,0.00020821,2]
[371532722,1752339070430,-715.49950863,0.00020821,2]
[371532724,1752339070439,-764.22,0.00020821,2]
[371532726,1752339070448,-1770.87,0.00021095,2]
[371532728,1752339070458,-764.22,0.00021095,2]
[371532730,1752339070467,-986.00652952,0.00021369,2]
[371532742,1752339070569,-350.943936,0.00016438,2]
[371532744,1752339070586,-109.056064,0.00016438,2]
[371532746,1752339070595,-460.0,0.00016438,2]
[371532748,1752339070604,-460.0,0.00016438,2]
[371532750,1752339070614,-623.0,0.00016702,3]
[371532752,1752339070623,-460.0,0.00016712,2]
[371532754,1752339070632,-460.0,0.00016712,2]
[371532756,1752339070641,-460.0,0.00016712,2]
[371532758,1752339070651,-460.0,0.00016986,2]
[371532760,1752339070661,-460.0,0.00016986,2]
[371532762,1752339070673,-460.0,0.0001726,2]
[371532765,1752339070683,-460.0,0.00017534,2]
[371532767,1752339070693,-784.86347048,0.00021369,2]
[371532769,1752339070707,-764.22,0.00021369,2]
[371532771,1752339070716,-1770.87,0.00021643,2]
[371532773,1752339070725,-764.22,0.00021643,2]
[371532775,1752339070734,-1369.10391801,0.00021698,2]
[371532776,1752339070743,-878.29,0.00021737,2]
[371532778,1752339070754,-553.577702,0.00021756,4]
[371532780,1752339070763,-168.0,0.00021761,2]
[371532782,1752339070774,-1973.8835911,0.00021762,5]
[371533131,1752339093712,236.360421,0.00015619,2]
[371533133,1752339319521,24900.0,0.00015506,2]
[371533136,1752339575266,1698.70863662,0.00016238,2]
[371533142,1752339860585,274.38260811,0.00015945,2]
[371533143,1752339871927,159.47801445,0.00016238,2]
[371533144,1752339876926,159.47801445,0.00016288,2]
[371533145,1752339892587,164.33366,0.00013699,2]
[371533194,1752340094521,236.360422,0.00015481,2]
[371533201,1752340162024,238.91385949,0.00015945,2]
[371533247,1752340176095,2867.1467086,0.00015481,2]
[371533259,1752340231847,-232.91699806,0.00016337,2]
[371533260,1752340231857,-159.47801445,0.00016338,2]
[371533261,1752340231866,-1447.47159001,0.00016338,2]
[371533262,1752340231878,-562.1929198,0.00016338,2]
[371533263,1752340231890,-733.27510468,0.00016338,2]
[371533264,1752340231907,-300.0,0.00016437,2]
[371533265,1752340231921,-127.86699372,0.00016437,2]
[371533266,1752340231938,-1072.13300628,0.00016437,2]
[371533267,1752340231952,-300.0,0.00016437,2]
[371533268,1752340231966,-460.0,0.00016438,2]
[371533269,1752340231979,-468.33360053,0.00016438,2]
[371533270,1752340231989,-460.0,0.00016438,2]
[371533273,1752340232003,-460.0,0.00016438,2]
[371533274,1752340232015,-460.0,0.00016438,2]
[371533275,1752340232027,-460.0,0.00016438,2]
[371533276,1752340232039,-460.0,0.00016438,2]
[371533277,1752340232050,-460.0,0.00016438,2]
[371533278,1752340232061,-460.0,0.00016438,2]
[371533279,1752340232074,-460.0,0.00016438,2]
[371533280,1752340232086,-460.0,0.00016438,2]
[371533281,1752340232099,-460.0,0.00016438,2]
[371533282,1752340232112,-460.0,0.00016438,2]
[371533283,1752340232124,-460.79793725,0.00016438,2]
[371533284,1752340232137,-460.0,0.00016438,2]
[371533285,1752340232150,-460.0,0.00016438,2]
[371533286,1752340232163,-460.0,0.00016438,2]
[371533287,1752340232175,-460.0,0.00016438,2]
[371533288,1752340232189,-460.0,0.00016438,2]
[371533289,1752340232200,-405.44545594,0.00016438,2]
[371533491,1752340237816,-55.78602839,0.00016438,2]
[371533492,1752340237826,-460.0,0.00016438,2]
[371533493,1752340237836,-460.0,0.00016438,2]
[371533494,1752340237845,-203.88558554,0.00016438,2]
[371533495,1752340237855,-465.86622321,0.00016438,2]
[371533496,1752340237864,-460.0,0.00016438,2]
[371533497,1752340237874,-460.0,0.00016438,2]
[371533498,1752340237883,-460.0,0.00016438,2]
[371533499,1752340237893,-460.0,0.00016438,2]
[371533500,1752340237902,-460.0,0.00016438,2]
[371533501,1752340237912,-460.0,0.00016438,2]
[371533502,1752340237921,-460.0,0.00016438,2]
[371533503,1752340237931,-460.0,0.00016438,2]
[371533504,1752340237940,-460.0,0.00016438,2]
[371533505,1752340237950,-460.0,0.00016438,2]
[371533506,1752340237959,-460.0,0.00016438,2]
[371533507,1752340237968,-458.33004213,0.00016438,2]
[371533508,1752340237977,-460.0,0.00016438,2]
[371533509,1752340237986,-460.0,0.00016438,2]
[371533510,1752340237996,-460.0,0.00016438,2]
[371533511,1752340238006,-460.0,0.00016438,2]
[371533512,1752340238015,-460.0,0.00016438,2]
[371533513,1752340238026,-460.0,0.00016438,2]
[371533514,1752340238035,-460.0,0.00016438,2]
[371533515,1752340238045,-460.0,0.00016438,2]
[371533516,1752340238055,-460.0,0.00016438,2]
[371533517,1752340238065,-460.0,0.00016438,2]
[371533518,1752340238076,-460.0,0.00016438,2]
[371533520,1752340238085,-460.0,0.00016438,2]
[371533521,1752340238094,-460.0,0.00016438,2]
[371533522,1752340238104,-460.0,0.00016438,2]
[371533523,1752340238114,-460.0,0.00016438,2]
[371533524,1752340238123,-460.0,0.00016438,2]
[371533525,1752340238133,-460.0,0.00016438,2]
[371533526,1752340238142,-460.0,0.00016438,2]
[371533527,1752340238151,-460.0,0.00016438,2]
[371533528,1752340238161,-317.47791679,0.00016438,2]
[371533529,1752340238171,-360.58045588,0.00016438,2]
[371533530,1752340238181,-266.16298042,0.00016438,2]
[371533531,1752340238199,-193.83701958,0.00016438,2]
[371533532,1752340238209,-460.0,0.00016438,2]
[371533533,1752340238219,-460.0,0.00016438,2]
[371533534,1752340238230,-460.0,0.00016438,2]
[371533535,1752340238239,-460.0,0.00016438,2]
[371533536,1752340238249,-460.0,0.00016438,2]
[371533537,1752340238259,-460.0,0.00016438,2]
[371533538,1752340238270,-456.74793286,0.00016438,2]
[371533539,1752340238280,-20.93890933,0.00016438,2]
[371533540,1752340238293,-439.06109067,0.00016438,2]
[371533541,1752340238304,-460.0,0.00016438,2]
[371533542,1752340238314,-460.0,0.00016438,2]
[371533543,1752340238324,-303.88504756,0.00016438,2]
[371533544,1752340238337,-156.11495244,0.00016438,2]
[371533545,1752340238346,-460.0,0.00016438,2]
[371533546,1752340238356,-460.0,0.00016438,2]
[371533547,1752340238365,-233.27649939,0.00016438,2]
[371533548,1752340238377,-226.72350061,0.00016438,2]
[371533549,1752340238387,-384.83249939,0.00016438,2]
[371533551,1752340238404,-75.16750061,0.00016438,2]
[371533553,1752340238414,-460.0,0.00016438,2]
[371533554,1752340238423,-460.0,0.00016438,2]
[371533555,1752340238432,-460.0,0.00016438,2]
[371533556,1752340238441,-460.0,0.00016438,2]
[371533557,1752340238450,-460.0,0.00016438,2]
[371533558,1752340238460,-460.0,0.00016438,2]
[371533559,1752340238471,-460.0,0.00016438,2]
[371533560,1752340238480,-460.0,0.00016438,2]
[371533561,1752340238489,-460.0,0.00016438,2]
[371533562,1752340238498,-460.0,0.00016438,2]
[371533563,1752340238508,-460.0,0.00016438,2]
[371533564,1752340238517,-460.0,0.00016438,2]
[371533565,1752340238527,-460.0,0.00016438,2]
[371533566,1752340238536,-460.0,0.00016438,2]
[371533567,1752340238545,-460.0,0.00016438,2]
[371533568,1752340238554,-460.0,0.00016438,2]
[371533569,1752340238564,-460.0,0.00016438,2]
[371533570,1752340238574,-460.0,0.00016438,2]
[371533571,1752340238583,-460.0,0.00016438,2]
[371533572,1752340238592,-460.0,0.00016438,2]
[371533573,1752340238601,-460.0,0.00016438,2]
[371533574,1752340238610,-460.0,0.00016438,2]
[371533575,1752340238620,-460.0,0.00016438,2]
[371533576,1752340238629,-460.0,0.00016438,2]
[371533578,1752340238640,-460.0,0.00016438,2]
[371533579,1752340238649,-460.0,0.00016438,2]
[371533580,1752340238659,-460.0,0.00016438,2]
[371533581,1752340238668,-460.0,0.00016438,2]
[371533582,1752340238678,-460.0,0.00016438,2]
[371533583,1752340238688,-460.0,0.00016438,2]
[371533584,1752340238698,-522.78595276,0.00016438,2]
[371533585,1752340238708,-460.0,0.00016438,2]
[371533586,1752340238718,-460.0,0.00016438,2]
[371533587,1752340238728,-460.0,0.00016438,2]
[371533588,1752340238738,-460.0,0.00016438,2]
[371533589,1752340238748,-460.0,0.00016438,2]
[371533590,1752340238758,-460.0,0.00016438,2]
[371533591,1752340238768,-460.0,0.00016438,2]
[371533592,1752340238778,-460.0,0.00016438,2]
[371533593,1752340238788,-474.05,0.00016438,2]
[371533594,1752340238797,-460.0,0.00016438,2]
[371533596,1752340238807,-460.0,0.00016438,2]
[371533598,1752340238817,-452.14337037,0.00016438,2]
[371533600,1752340238827,-460.0,0.00016438,2]
[371533602,1752340238838,-460.0,0.00016438,2]
[371533604,1752340238848,-460.0,0.00016438,2]
[371533606,1752340238858,-460.0,0.00016438,2]
[371533608,1752340238868,-460.0,0.00016438,2]
[371533610,1752340238878,-460.0,0.00016438,2]
[371533612,1752340238888,-460.0,0.00016438,2]
[371533614,1752340238898,-460.0,0.00016438,2]
[371533616,1752340238908,-460.0,0.00016438,2]
[371533618,1752340238918,-460.0,0.00016438,2]
[371533620,1752340238928,-340.4799945,0.00016438,2]
[371533622,1752340238938,-460.0,0.00016438,2]
[371533624,1752340238948,-460.0,0.00016438,2]
[371533626,1752340238958,-460.0,0.00016438,2]
[371533628,1752340238968,-460.0,0.00016438,2]
[371533630,1752340238978,-460.0,0.00016438,2]
[371533632,1752340238988,-460.0,0.00016438,2]
[371533634,1752340238997,-460.0,0.00016438,2]
[371533636,1752340239007,-460.0,0.00016438,2]
[371533638,1752340239018,-460.0,0.00016438,2]
[371533640,1752340239028,-460.0,0.00016438,2]
[371533642,1752340239038,-460.0,0.00016438,2]
[371533644,1752340239047,-460.0,0.00016438,2]
[371533646,1752340239057,-460.0,0.00016438,2]
[371533648,1752340239071,-460.0,0.00016438,2]
[371533650,1752340239080,-460.0,0.00016438,2]
[371533652,1752340239089,-478.80915902,0.00016438,2]
[371533654,1752340239099,-460.0,0.00016438,2]
[371533656,1752340239109,-460.0,0.00016438,2]
[371533658,1752340239119,-460.0,0.00016438,2]
[371533660,1752340239128,-460.0,0.00016438,2]
[371533662,1752340239138,-478.89,0.00016438,2]
[371533664,1752340239147,-465.82607617,0.00016438,2]
[371533666,1752340239157,-460.0,0.00016438,2]
[371533668,1752340239167,-467.16901553,0.00016438,2]
[371533670,1752340239177,-460.0,0.00016438,2]
[371533672,1752340239188,-460.0,0.00016438,2]
[371533674,1752340239198,-460.0,0.00016438,2]
[371533676,1752340239208,-460.0,0.00016438,2]
[371533678,1752340239217,-460.0,0.00016438,2]
[371533680,1752340239227,-460.0,0.00016438,2]
[371533682,1752340239237,-460.0,0.00016438,2]
[371533684,1752340239246,-460.0,0.00016438,2]
[371533686,1752340239256,-460.0,0.00016438,2]
[371533688,1752340239265,-460.0,0.00016438,2]
[371533690,1752340239276,-460.0,0.00016438,2]
[371533692,1752340239285,-502.24833765,0.00016438,2]
[371533694,1752340239295,-311.42310112,0.00016438,2]
[371533696,1752340239304,-460.0,0.00016438,2]
[371533698,1752340239316,-460.0,0.00016438,2]
[371533700,1752340239326,-460.0,0.00016438,2]
[371533702,1752340239335,-394.76914701,0.00016438,2]
[371533704,1752340239345,-460.0,0.00016438,2]
[371533706,1752340239355,-460.0,0.00016438,2]
[371533708,1752340239365,-268.8166014,0.00016438,2]
[371533710,1752340239374,-460.0,0.00016438,2]
[371533712,1752340239384,-460.0,0.00016438,2]
[371533715,1752340239394,-460.0,0.00016438,2]
[371533718,1752340239403,-460.0,0.00016438,2]
[371533720,1752340239413,-460.0,0.00016438,2]
[371533722,1752340239424,-460.0,0.00016438,2]
[371533724,1752340239434,-460.0,0.00016438,2]
[371533725,1752340239443,-460.0,0.00016438,2]
[371533728,1752340239453,-460.0,0.00016438,2]
[371533730,1752340239462,-460.0,0.00016438,2]
[371533732,1752340239473,-460.0,0.00016438,2]
[371533734,1752340239483,-460.0,0.00016438,2]
[371533736,1752340239492,-459.74679443,0.00016438,2]
[371533738,1752340239502,-460.0,0.00016438,2]
[371533740,1752340239512,-460.0,0.00016438,2]
[371533742,1752340239521,-474.34,0.00016438,2]
[371533744,1752340239531,-409.02632785,0.00016438,2]
[371533746,1752340239541,-460.0,0.00016438,2]
[371533748,1752340239551,-460.0,0.00016438,2]
[371533750,1752340239560,-460.0,0.00016438,2]
[371533752,1752340239572,-401.2559442,0.00016438,2]
[371533753,1752340239581,-460.0,0.00016438,2]
[371533756,1752340239591,-460.0,0.00016438,2]
[371533758,1752340239601,-396.03338289,0.00016438,2]
[371533760,1752340239611,-336.89135049,0.00016438,2]
[371533762,1752340239620,-2619.32,0.00016438,2]
[371533764,1752340239630,-460.0,0.00016438,2]
[371533765,1752340239639,-460.0,0.00016438,2]
[371533768,1752340239649,-460.0,0.00016438,2]
[371533770,1752340239659,-460.0,0.00016438,2]
[371533772,1752340239669,-460.0,0.00016438,2]
[371533773,1752340239679,-782.78,0.00016438,2]
[371533776,1752340239689,-460.0,0.00016438,2]
[371533778,1752340239699,-460.0,0.00016438,2]
[371533780,1752340239708,-460.0,0.00016438,2]
[371533782,1752340239718,-460.0,0.00016438,2]
[371533784,1752340239727,-460.0,0.00016438,2]
[371533786,1752340239737,-460.0,0.00016438,2]
[371533788,1752340239746,-460.0,0.00016438,2]
[371533790,1752340239756,-460.0,0.00016438,2]
[371533792,1752340239765,-460.0,0.00016438,2]
[371533794,1752340239776,-460.0,0.00016438,2]
[371533796,1752340239786,-460.0,0.00016438,2]
[371533798,1752340239795,-545.43,0.00016438,2]
[371533800,1752340239805,-460.0,0.00016438,2]
[371533802,1752340239815,-460.0,0.00016438,2]
[371533804,1752340239825,-460.0,0.00016438,2]
[371533806,1752340239834,-524.08,0.00016438,2]
[371533808,1752340239844,-460.0,0.00016438,2]
[371533810,1752340239854,-460.0,0.00016438,2]
[371533812,1752340239864,-460.0,0.00016438,2]
[371533814,1752340239874,-460.0,0.00016438,2]
[371533816,1752340239883,-460.0,0.00016438,2]
[371533818,1752340239893,-460.0,0.00016438,2]
[371533820,1752340239902,-463.70617743,0.00016438,2]
[371533822,1752340239912,-460.0,0.00016438,2]
[371533824,1752340239921,-500.0,0.00016438,2]
[371533826,1752340239931,-500.0,0.00016438,2]
[371533828,1752340239940,-460.0,0.00016438,2]